[Event "Late-Titled-Tuesday-Blitz-June-04-2024"]
[Site "Chess.com"]
[Date "2024.06.04"]
[Round "4"]
[White "bazar-wokzal"]
[Black "lachesisQ"]
[Result "0-1"]
[WhiteElo "2585"]
[BlackElo "3037"]
[TimeControl "180+1"]
[EndTime "14:39:23 PDT"]
[Termination "lachesisQ won on time"]

1. e4 {[%clk 0:03:00.9]} 1... c5 {[%clk 0:02:59.3]} 2. c3 {[%clk 0:03:00.5]}
2... d5 {[%clk 0:02:56.6]} 3. exd5 {[%clk 0:03:00.1]} 3... Qxd5 {[%clk
0:02:57.5]} 4. d4 {[%clk 0:02:59.8]} 4... Nf6 {[%clk 0:02:57.9]} 5. Nf3 {[%clk
0:02:59.5]} 5... e6 {[%clk 0:02:57.6]} 6. a3 {[%clk 0:02:59.1]} 6... Nc6 {[%clk
0:02:55.4]} 7. Be3 {[%clk 0:02:58.7]} 7... cxd4 {[%clk 0:02:44.8]} 8. cxd4
{[%clk 0:02:59.6]} 8... Be7 {[%clk 0:02:44.8]} 9. Nc3 {[%clk 0:02:59.4]} 9...
Qd8 {[%clk 0:02:45]} 10. Qc2 {[%clk 0:02:59.9]} 10... O-O {[%clk 0:02:44.9]} 11.
Bd3 {[%clk 0:03:00.5]} 11... Bd7 {[%clk 0:02:40.3]} 12. O-O {[%clk 0:03:00.1]}
12... Rc8 {[%clk 0:02:40.6]} 13. Rad1 {[%clk 0:02:52.9]} 13... Re8 {[%clk
0:02:37.4]} 14. Bg5 {[%clk 0:02:42.3]} 14... h6 {[%clk 0:02:35.6]} 15. Be3
{[%clk 0:02:38.8]} 15... Bf8 {[%clk 0:02:31.8]} 16. Qd2 {[%clk 0:02:36.9]} 16...
Ne7 {[%clk 0:02:30.8]} 17. Ne5 {[%clk 0:02:34.9]} 17... a6 {[%clk 0:02:18.4]}
18. Bb1 {[%clk 0:02:33.1]} 18... Ned5 {[%clk 0:02:09.3]} 19. Qd3 {[%clk
0:02:24.3]} 19... Bc6 {[%clk 0:01:59.1]} 20. Ng4 {[%clk 0:01:46]} 20... Be7
{[%clk 0:01:47.4]} 21. Nxd5 {[%clk 0:01:40.7]} 21... Qxd5 {[%clk 0:01:46.1]} 22.
Nxf6+ {[%clk 0:01:40.5]} 22... Bxf6 {[%clk 0:01:47]} 23. Qh7+ {[%clk 0:01:31.9]}
23... Kf8 {[%clk 0:01:46.9]} 24. f3 {[%clk 0:01:32.4]} 24... Red8 {[%clk
0:01:32.4]} 25. Be4 {[%clk 0:01:22.7]} 25... Qb3 {[%clk 0:01:32.2]} 26. Rd3
{[%clk 0:01:17.9]} 26... Bxe4 {[%clk 0:01:30.7]} 27. Qh8+ {[%clk 0:01:11.1]}
27... Ke7 {[%clk 0:01:25.2]} 28. Qxd8+ {[%clk 0:01:12]} 28... Rxd8 {[%clk
0:01:18.8]} 29. Rxb3 {[%clk 0:01:12.9]} 29... Bc6 {[%clk 0:01:12.9]} 30. Rc3
{[%clk 0:00:57.1]} 30... Bxd4 {[%clk 0:01:09.6]} 31. Bxd4 {[%clk 0:00:55.7]}
31... Rxd4 {[%clk 0:01:10.5]} 32. Rf2 {[%clk 0:00:44.3]} 32... g5 {[%clk
0:01:09.2]} 33. Rcc2 {[%clk 0:00:40.6]} 33... Rd1+ {[%clk 0:01:07]} 34. Rf1
{[%clk 0:00:40.4]} 34... Rd3 {[%clk 0:01:07.9]} 35. Kf2 {[%clk 0:00:39.2]} 35...
h5 {[%clk 0:01:05.4]} 36. Re1 {[%clk 0:00:36.1]} 36... f6 {[%clk 0:00:59.7]} 37.
Rc3 {[%clk 0:00:35.2]} 37... Rd4 {[%clk 0:00:58.8]} 38. Re2 {[%clk 0:00:31]}
38... e5 {[%clk 0:00:57.9]} 39. Rcc2 {[%clk 0:00:30.2]} 39... g4 {[%clk
0:00:55.7]} 40. Red2 {[%clk 0:00:26.9]} 40... Rf4 {[%clk 0:00:55.4]} 41. Rc3
{[%clk 0:00:26.1]} 41... gxf3 {[%clk 0:00:52]} 42. gxf3 {[%clk 0:00:26]} 42...
Ke6 {[%clk 0:00:48.7]} 43. Rd8 {[%clk 0:00:20.4]} 43... h4 {[%clk 0:00:43.5]}
44. Ke2 {[%clk 0:00:19.1]} 44... Kf5 {[%clk 0:00:35.9]} 45. Rg8 {[%clk
0:00:18.4]} 45... Rd4 {[%clk 0:00:34.8]} 46. Rh8 {[%clk 0:00:18.4]} 46... Bb5+
{[%clk 0:00:31.9]} 47. Ke3 {[%clk 0:00:18]} 47... Rd1 {[%clk 0:00:24.1]} 48.
Rxh4 {[%clk 0:00:16.9]} 48... Re1+ {[%clk 0:00:24.4]} 49. Kf2 {[%clk 0:00:15.5]}
49... Re2+ {[%clk 0:00:24.7]} 50. Kg3 {[%clk 0:00:15.7]} 50... Rxb2 {[%clk
0:00:25.6]} 51. Rc7 {[%clk 0:00:15.1]} 51... Rb3 {[%clk 0:00:22.4]} 52. Rh5+
{[%clk 0:00:14.1]} 52... Kg6 {[%clk 0:00:22.2]} 53. Rch7 {[%clk 0:00:12.9]}
53... Bc6 {[%clk 0:00:22.1]} 54. R5h6+ {[%clk 0:00:13]} 54... Kf5 {[%clk
0:00:22.3]} 55. Rh5+ {[%clk 0:00:13.4]} 55... Ke6 {[%clk 0:00:22.5]} 56. h4
{[%clk 0:00:08.2]} 56... Rxa3 {[%clk 0:00:22.5]} 57. R5h6 {[%clk 0:00:06.8]}
57... Rxf3+ {[%clk 0:00:21.4]} 58. Kg4 {[%clk 0:00:06.5]} 58... Rf4+ {[%clk
0:00:21.7]} 59. Kg3 {[%clk 0:00:06.4]} 59... a5 {[%clk 0:00:21.9]} 60. Rc7
{[%clk 0:00:05.2]} 60... a4 {[%clk 0:00:21.8]} 61. Rc8 {[%clk 0:00:04.8]} 61...
a3 {[%clk 0:00:21.7]} 62. Ra8 {[%clk 0:00:05.1]} 62... Ra4 {[%clk 0:00:20.6]}
0-1

[Event "Late-Titled-Tuesday-Blitz-June-04-2024"]
[Site "Chess.com"]
[Date "2024.06.04"]
[Round "4"]
[White "Kirill_Klukin"]
[Black "Chigorinetz"]
[Result "1-0"]
[WhiteElo "2822"]
[BlackElo "2550"]
[TimeControl "180+1"]
[EndTime "14:39:23 PDT"]
[Termination "Kirill_Klukin won on time"]

1. d4 {[%clk 0:03:00.9]} 1... d5 {[%clk 0:02:59.4]} 2. c4 {[%clk 0:02:59.8]}
2... Nc6 {[%clk 0:02:59.2]} 3. Nf3 {[%clk 0:02:59.8]} 3... Bg4 {[%clk
0:02:57.5]} 4. cxd5 {[%clk 0:03:00]} 4... Bxf3 {[%clk 0:02:57.3]} 5. dxc6 {[%clk
0:02:59.3]} 5... Bxc6 {[%clk 0:02:57.1]} 6. Nc3 {[%clk 0:03:00]} 6... e6 {[%clk
0:02:57.3]} 7. Bf4 {[%clk 0:02:56.5]} 7... Nf6 {[%clk 0:02:53.9]} 8. e3 {[%clk
0:02:56.6]} 8... a6 {[%clk 0:02:54.2]} 9. Qc2 {[%clk 0:02:54.8]} 9... h6 {[%clk
0:02:46.2]} 10. O-O-O {[%clk 0:02:48.3]} 10... b5 {[%clk 0:02:37.7]} 11. f3
{[%clk 0:02:43.7]} 11... Qd7 {[%clk 0:02:11.2]} 12. e4 {[%clk 0:02:40.1]} 12...
b4 {[%clk 0:02:10.2]} 13. d5 {[%clk 0:02:24.6]} 13... bxc3 {[%clk 0:02:05.1]}
14. dxc6 {[%clk 0:02:24.9]} 14... Qxc6 {[%clk 0:01:57]} 15. Qxc3 {[%clk
0:02:25]} 15... Qxc3+ {[%clk 0:01:56]} 16. bxc3 {[%clk 0:02:25.9]} 16... Bd6
{[%clk 0:01:52.8]} 17. Bxd6 {[%clk 0:02:18.6]} 17... cxd6 {[%clk 0:01:53.4]} 18.
Rxd6 {[%clk 0:02:19.3]} 18... Ke7 {[%clk 0:01:49.9]} 19. Rxa6 {[%clk 0:02:19.1]}
19... Rxa6 {[%clk 0:01:43.2]} 20. Bxa6 {[%clk 0:02:20]} 20... Ra8 {[%clk
0:01:42.5]} 21. Bc4 {[%clk 0:02:20.1]} 21... Rc8 {[%clk 0:01:42.2]} 22. Bb3
{[%clk 0:02:20.8]} 22... Rxc3+ {[%clk 0:01:42.1]} 23. Kd2 {[%clk 0:02:19.5]}
23... Rc7 {[%clk 0:01:42.6]} 24. Rc1 {[%clk 0:02:15.2]} 24... Ra7 {[%clk
0:01:41.1]} 25. Kc3 {[%clk 0:02:06.1]} 25... Nd7 {[%clk 0:01:40.1]} 26. a4
{[%clk 0:02:02.3]} 26... Nc5 {[%clk 0:01:37.5]} 27. Ra1 {[%clk 0:01:50.5]} 27...
Kd6 {[%clk 0:01:28]} 28. Bd1 {[%clk 0:01:36.9]} 28... g5 {[%clk 0:01:27.6]} 29.
a5 {[%clk 0:01:29.5]} 29... Rc7 {[%clk 0:01:26.6]} 30. Kd2 {[%clk 0:01:19.4]}
30... Kc6 {[%clk 0:01:25.7]} 31. Ke3 {[%clk 0:01:18.9]} 31... Ra7 {[%clk
0:01:14.9]} 32. Ra2 {[%clk 0:01:13.5]} 32... Kb5 {[%clk 0:01:08.6]} 33. Be2+
{[%clk 0:01:11.8]} 33... Kb4 {[%clk 0:01:08.5]} 34. a6 {[%clk 0:01:11.8]} 34...
e5 {[%clk 0:01:05.3]} 35. g3 {[%clk 0:01:10.6]} 35... f6 {[%clk 0:01:04.2]} 36.
h4 {[%clk 0:01:09.8]} 36... Nb3 {[%clk 0:00:55.5]} 37. Bd3 {[%clk 0:00:43.9]}
37... Nc5 {[%clk 0:00:50.4]} 38. Rb2+ {[%clk 0:00:40.6]} 38... Kc3 {[%clk
0:00:48.1]} 39. Rc2+ {[%clk 0:00:40.8]} 39... Kb4 {[%clk 0:00:48.6]} 40. Rc4+
{[%clk 0:00:39.4]} 40... Kb5 {[%clk 0:00:48.8]} 41. Rc1+ {[%clk 0:00:39.5]}
41... Kb4 {[%clk 0:00:48.7]} 42. Be2 {[%clk 0:00:37.5]} 42... Ra8 {[%clk
0:00:28.4]} 43. Rb1+ {[%clk 0:00:36]} 43... Kc3 {[%clk 0:00:26.2]} 44. Rb6
{[%clk 0:00:36.1]} 44... Rd8 {[%clk 0:00:16.5]} 45. Rxf6 {[%clk 0:00:32.7]}
45... gxh4 {[%clk 0:00:16.9]} 46. gxh4 {[%clk 0:00:33.1]} 46... h5 {[%clk
0:00:11.4]} 47. a7 {[%clk 0:00:27.8]} 47... Ra8 {[%clk 0:00:09.7]} 48. Rf7
{[%clk 0:00:28.3]} 48... Ne6 {[%clk 0:00:09.7]} 49. Rb7 {[%clk 0:00:16.7]} 49...
Nc5 {[%clk 0:00:07.1]} 50. Rc7 {[%clk 0:00:15.5]} 50... Kb4 {[%clk 0:00:07.6]}
51. Re7 {[%clk 0:00:15.3]} 51... Nb3 {[%clk 0:00:05.8]} 52. Rxe5 {[%clk
0:00:12.5]} 52... Rxa7 {[%clk 0:00:05.2]} 53. Rxh5 {[%clk 0:00:13.2]} 53... Ra1
{[%clk 0:00:04.8]} 54. Rd5 {[%clk 0:00:13.1]} 54... Rh1 {[%clk 0:00:04.2]} 55.
h5 {[%clk 0:00:13.7]} 55... Nc5 {[%clk 0:00:04.2]} 56. f4 {[%clk 0:00:11]} 56...
Rh3+ {[%clk 0:00:03.6]} 57. Bf3 {[%clk 0:00:11.5]} 57... Na4 {[%clk 0:00:02.9]}
58. Rg5 {[%clk 0:00:10]} 58... Nb6 {[%clk 0:00:02]} 59. f5 {[%clk 0:00:09.4]}
1-0

[Event "Late-Titled-Tuesday-Blitz-June-04-2024"]
[Site "Chess.com"]
[Date "2024.06.04"]
[Round "4"]
[White "FMOlexandrProhorov"]
[Black "xasid81"]
[Result "0-1"]
[WhiteElo "2373"]
[BlackElo "2638"]
[TimeControl "180+1"]
[EndTime "14:39:25 PDT"]
[Termination "xasid81 won on time"]

1. Nf3 {[%clk 0:03:00.9]} 1... a6 {[%clk 0:03:00.5]} 2. a4 {[%clk 0:02:56.3]}
2... e6 {[%clk 0:02:57.9]} 3. g3 {[%clk 0:02:56.2]} 3... b6 {[%clk 0:02:56.5]}
4. Bg2 {[%clk 0:02:56.3]} 4... Bb7 {[%clk 0:02:57]} 5. O-O {[%clk 0:02:56.9]}
5... Nf6 {[%clk 0:02:56.9]} 6. d3 {[%clk 0:02:55.9]} 6... g6 {[%clk 0:02:57]} 7.
e4 {[%clk 0:02:55.8]} 7... Bg7 {[%clk 0:02:56.6]} 8. Re1 {[%clk 0:02:56]} 8...
O-O {[%clk 0:02:56.2]} 9. Nbd2 {[%clk 0:02:53.2]} 9... d6 {[%clk 0:02:51.5]} 10.
Qe2 {[%clk 0:02:51.5]} 10... Nbd7 {[%clk 0:02:50.8]} 11. c3 {[%clk 0:02:43.1]}
11... Re8 {[%clk 0:02:48.5]} 12. d4 {[%clk 0:02:40.1]} 12... e5 {[%clk
0:02:40.2]} 13. Qd3 {[%clk 0:02:31.2]} 13... exd4 {[%clk 0:02:39.3]} 14. cxd4
{[%clk 0:02:31]} 14... c5 {[%clk 0:02:37.6]} 15. d5 {[%clk 0:02:07.1]} 15... Ng4
{[%clk 0:02:34.3]} 16. Nc4 {[%clk 0:01:54.4]} 16... Nde5 {[%clk 0:02:32.3]} 17.
Ncxe5 {[%clk 0:01:51.8]} 17... Nxe5 {[%clk 0:02:33.2]} 18. Qd1 {[%clk
0:01:44.8]} 18... Nxf3+ {[%clk 0:02:29.1]} 19. Qxf3 {[%clk 0:01:40.7]} 19...
Bxd5 {[%clk 0:02:24]} 20. Bf4 {[%clk 0:01:36]} 20... Bc6 {[%clk 0:02:16.7]} 21.
Rad1 {[%clk 0:01:32.4]} 21... Be5 {[%clk 0:02:05.6]} 22. b3 {[%clk 0:01:28.2]}
22... Qf6 {[%clk 0:01:48.2]} 23. Qd3 {[%clk 0:01:17.4]} 23... Bxf4 {[%clk
0:01:42.8]} 24. gxf4 {[%clk 0:01:15.7]} 24... Qxf4 {[%clk 0:01:15.9]} 25. Qxd6
{[%clk 0:01:14.6]} 25... Qxd6 {[%clk 0:01:14.2]} 26. Rxd6 {[%clk 0:01:14.7]}
26... Rac8 {[%clk 0:01:05.7]} 27. e5 {[%clk 0:01:06.4]} 27... Bxg2 {[%clk
0:01:03.4]} 28. Kxg2 {[%clk 0:01:06.8]} 28... Re6 {[%clk 0:01:02.3]} 29. Red1
{[%clk 0:01:00.6]} 29... b5 {[%clk 0:00:36.6]} 30. axb5 {[%clk 0:00:57.8]} 30...
axb5 {[%clk 0:00:37.5]} 31. f4 {[%clk 0:00:54.6]} 31... c4 {[%clk 0:00:26.1]}
32. bxc4 {[%clk 0:00:54.3]} 32... bxc4 {[%clk 0:00:27]} 33. Rd8+ {[%clk
0:00:46.6]} 33... Re8 {[%clk 0:00:25.2]} 34. Rxe8+ {[%clk 0:00:42.4]} 34... Rxe8
{[%clk 0:00:25.1]} 35. Kf3 {[%clk 0:00:43.1]} 35... Rc8 {[%clk 0:00:22.9]} 36.
Rc1 {[%clk 0:00:32.4]} 36... f6 {[%clk 0:00:22]} 37. Ke4 {[%clk 0:00:25.1]}
37... Kf7 {[%clk 0:00:20.5]} 38. Kd5 {[%clk 0:00:22.7]} 38... c3 {[%clk
0:00:20.7]} 39. Rc2 {[%clk 0:00:20.2]} 39... Ke7 {[%clk 0:00:19.7]} 40. h4
{[%clk 0:00:18]} 40... Kf7 {[%clk 0:00:16.9]} 41. exf6 {[%clk 0:00:09.4]} 41...
Kxf6 {[%clk 0:00:16.6]} 42. Ke4 {[%clk 0:00:07.3]} 42... Rc4+ {[%clk 0:00:16]}
43. Ke3 {[%clk 0:00:05.4]} 43... Kf5 {[%clk 0:00:15.4]} 44. Kd3 {[%clk
0:00:03.4]} 44... Rxf4 {[%clk 0:00:14.1]} 45. Kxc3 {[%clk 0:00:02]} 45... Rxh4
{[%clk 0:00:14]} 46. Rf2+ {[%clk 0:00:02.3]} 46... Rf4 {[%clk 0:00:14.1]} 47.
Rh2 {[%clk 0:00:02.4]} 47... h5 {[%clk 0:00:13.9]} 48. Kd3 {[%clk 0:00:03.1]}
48... h4 {[%clk 0:00:14]} 49. Ke3 {[%clk 0:00:03.2]} 49... g5 {[%clk 0:00:14.4]}
50. Ra2 {[%clk 0:00:02.8]} 50... Kg4 {[%clk 0:00:13.5]} 51. Rg2+ {[%clk
0:00:02.7]} 51... Kh5 {[%clk 0:00:13.5]} 52. Rg1 {[%clk 0:00:03.1]} 52... Rf8
{[%clk 0:00:13.5]} 53. Rg2 {[%clk 0:00:02.4]} 53... h3 {[%clk 0:00:13.3]} 54.
Rg1 {[%clk 0:00:01.7]} 54... Kh4 {[%clk 0:00:13.4]} 55. Ke2 {[%clk 0:00:01]}
55... g4 {[%clk 0:00:13.5]} 56. Ke3 {[%clk 0:00:01.6]} 56... h2 {[%clk
0:00:13.5]} 57. Ra1 {[%clk 0:00:01.8]} 57... Kh3 {[%clk 0:00:12.1]} 58. Rd1
{[%clk 0:00:01.2]} 58... g3 {[%clk 0:00:11.6]} 59. Rd7 {[%clk 0:00:02.1]} 59...
Kg2 {[%clk 0:00:11.2]} 60. Rh7 {[%clk 0:00:03]} 60... h1=Q {[%clk 0:00:11]} 0-1

[Event "Late-Titled-Tuesday-Blitz-June-04-2024"]
[Site "Chess.com"]
[Date "2024.06.04"]
[Round "4"]
[White "slidingknight2775"]
[Black "baki83"]
[Result "0-1"]
[WhiteElo "2669"]
[BlackElo "2914"]
[TimeControl "180+1"]
[EndTime "14:39:31 PDT"]
[Termination "baki83 won on time"]

1. d4 {[%clk 0:03:00.9]} 1... d5 {[%clk 0:02:59.8]} 2. c4 {[%clk 0:03:01.2]}
2... e6 {[%clk 0:03:00.3]} 3. Nf3 {[%clk 0:03:01.7]} 3... Nf6 {[%clk 0:03:00.4]}
4. g3 {[%clk 0:03:02.3]} 4... a6 {[%clk 0:03:00.7]} 5. Bg2 {[%clk 0:02:59.8]}
5... dxc4 {[%clk 0:03:00.7]} 6. O-O {[%clk 0:03:00.2]} 6... Nc6 {[%clk
0:03:00.9]} 7. Qd2 {[%clk 0:02:57.7]} 7... Rb8 {[%clk 0:02:55.3]} 8. Ne5 {[%clk
0:02:55.5]} 8... Nxe5 {[%clk 0:02:46.8]} 9. dxe5 {[%clk 0:02:55.9]} 9... Nd7
{[%clk 0:02:27.2]} 10. Rd1 {[%clk 0:02:42.6]} 10... Be7 {[%clk 0:02:26.5]} 11.
Qf4 {[%clk 0:02:33.5]} 11... O-O {[%clk 0:02:26.4]} 12. Nc3 {[%clk 0:02:06.5]}
12... Qe8 {[%clk 0:01:54.8]} 13. Qxc4 {[%clk 0:02:00.5]} 13... c5 {[%clk
0:01:54.6]} 14. Bf4 {[%clk 0:01:47.7]} 14... b5 {[%clk 0:01:53.9]} 15. Qd3
{[%clk 0:01:47.5]} 15... g5 {[%clk 0:01:35.9]} 16. Bc6 {[%clk 0:01:39]} 16...
gxf4 {[%clk 0:01:29.8]} 17. Bxd7 {[%clk 0:01:38.6]} 17... Bxd7 {[%clk
0:01:12.4]} 18. Qxd7 {[%clk 0:01:39.5]} 18... fxg3 {[%clk 0:01:12.7]} 19. hxg3
{[%clk 0:01:38.6]} 19... Qxd7 {[%clk 0:01:08.8]} 20. Rxd7 {[%clk 0:01:39.5]}
20... Rfe8 {[%clk 0:01:09.3]} 21. Ne4 {[%clk 0:01:35.4]} 21... c4 {[%clk
0:01:03.8]} 22. Nf6+ {[%clk 0:01:14.8]} 22... Bxf6 {[%clk 0:01:01.9]} 23. exf6
{[%clk 0:01:15.7]} 23... Red8 {[%clk 0:00:51.7]} 24. Rad1 {[%clk 0:01:02.8]}
24... Rxd7 {[%clk 0:00:51.8]} 25. Rxd7 {[%clk 0:01:03.7]} 25... h6 {[%clk
0:00:52.2]} 26. Kf1 {[%clk 0:00:57.8]} 26... Rc8 {[%clk 0:00:37.1]} 27. Ke1
{[%clk 0:00:52.1]} 27... c3 {[%clk 0:00:33.5]} 28. bxc3 {[%clk 0:00:50.8]} 28...
Rxc3 {[%clk 0:00:34.1]} 29. a4 {[%clk 0:00:21.9]} 29... bxa4 {[%clk 0:00:31.4]}
30. Rd4 {[%clk 0:00:22.3]} 30... a3 {[%clk 0:00:27.9]} 31. Ra4 {[%clk
0:00:20.4]} 31... Kh7 {[%clk 0:00:26.4]} 32. Kd2 {[%clk 0:00:18.5]} 32... Rc6
{[%clk 0:00:26.2]} 33. Rxa3 {[%clk 0:00:18.6]} 33... Kg6 {[%clk 0:00:26.8]} 34.
Rf3 {[%clk 0:00:15.8]} 34... e5 {[%clk 0:00:23.9]} 35. Ra3 {[%clk 0:00:07.9]}
35... Kxf6 {[%clk 0:00:22.9]} 36. g4 {[%clk 0:00:07.7]} 36... Kg5 {[%clk
0:00:20.6]} 37. f3 {[%clk 0:00:07.8]} 37... f5 {[%clk 0:00:19.7]} 38. gxf5
{[%clk 0:00:08.7]} 38... Kxf5 {[%clk 0:00:20.1]} 39. Ke3 {[%clk 0:00:08.9]}
39... h5 {[%clk 0:00:17.8]} 40. Ra4 {[%clk 0:00:09.2]} 40... Rh6 {[%clk
0:00:15.7]} 41. Kf2 {[%clk 0:00:04]} 41... h4 {[%clk 0:00:14.6]} 42. Kg2 {[%clk
0:00:04.5]} 42... Kg5 {[%clk 0:00:09.7]} 43. Rg4+ {[%clk 0:00:03.6]} 43... Kf5
{[%clk 0:00:09.6]} 44. Rg8 {[%clk 0:00:02.7]} 44... Kf4 {[%clk 0:00:08.8]} 45.
Kf2 {[%clk 0:00:02.1]} 45... h3 {[%clk 0:00:08.4]} 46. e3+ {[%clk 0:00:01.2]}
46... Kf5 {[%clk 0:00:08.4]} 47. Kg1 {[%clk 0:00:02.1]} 47... Ke6 {[%clk
0:00:08]} 48. Ra8 {[%clk 0:00:01.8]} 48... Kd5 {[%clk 0:00:08]} 49. f4 {[%clk
0:00:01.5]} 49... exf4 {[%clk 0:00:07.8]} 50. exf4 {[%clk 0:00:02.4]} 50... Ke4
{[%clk 0:00:08.2]} 51. Rf8 {[%clk 0:00:02.4]} 51... Rh4 {[%clk 0:00:07.5]} 52.
Ra8 {[%clk 0:00:01.8]} 52... Rh6 {[%clk 0:00:07.5]} 53. Rf8 {[%clk 0:00:02.4]}
53... a5 {[%clk 0:00:06.6]} 54. Ra8 {[%clk 0:00:02.5]} 54... Rh5 {[%clk
0:00:06.8]} 55. Rf8 {[%clk 0:00:02.9]} 55... Rf5 {[%clk 0:00:05.2]} 56. Re8+
{[%clk 0:00:02.5]} 56... Kxf4 {[%clk 0:00:05.3]} 57. Kh2 {[%clk 0:00:03.4]}
57... Rh5 {[%clk 0:00:05.5]} 58. Ra8 {[%clk 0:00:03.6]} 58... Ke4 {[%clk
0:00:05.8]} 59. Re8+ {[%clk 0:00:03]} 59... Kd3 {[%clk 0:00:06.1]} 60. Rc8
{[%clk 0:00:02.8]} 60... Kd2 {[%clk 0:00:05.8]} 61. Rc7 {[%clk 0:00:02.8]} 61...
Rh4 {[%clk 0:00:05.3]} 0-1

[Event "Late-Titled-Tuesday-Blitz-June-04-2024"]
[Site "Chess.com"]
[Date "2024.06.04"]
[Round "4"]
[White "Semetey"]
[Black "Rodalquilar"]
[Result "0-1"]
[WhiteElo "2543"]
[BlackElo "2787"]
[TimeControl "180+1"]
[EndTime "14:39:34 PDT"]
[Termination "Rodalquilar won on time"]

1. e4 {[%clk 0:02:52.4]} 1... d5 {[%clk 0:03:00.1]} 2. exd5 {[%clk 0:02:50.7]}
2... Qxd5 {[%clk 0:03:01]} 3. Nc3 {[%clk 0:02:50.5]} 3... Qa5 {[%clk 0:03:01.2]}
4. d4 {[%clk 0:02:50.1]} 4... Nf6 {[%clk 0:03:01.7]} 5. Nf3 {[%clk 0:02:48.9]}
5... Bf5 {[%clk 0:03:01.9]} 6. Be2 {[%clk 0:02:47.3]} 6... e6 {[%clk 0:03:01.3]}
7. O-O {[%clk 0:02:47.4]} 7... Bb4 {[%clk 0:03:01]} 8. Bd2 {[%clk 0:02:47.1]}
8... Nc6 {[%clk 0:03:01.1]} 9. a3 {[%clk 0:02:46.6]} 9... Bxc3 {[%clk
0:03:01.3]} 10. Bxc3 {[%clk 0:02:46.5]} 10... Qb6 {[%clk 0:03:01.6]} 11. b4
{[%clk 0:02:36.3]} 11... O-O {[%clk 0:02:57.2]} 12. Bb2 {[%clk 0:02:35.3]} 12...
a5 {[%clk 0:02:47.9]} 13. b5 {[%clk 0:02:33.6]} 13... Ne7 {[%clk 0:02:28.7]} 14.
c4 {[%clk 0:02:18.9]} 14... c5 {[%clk 0:02:28.9]} 15. dxc5 {[%clk 0:02:09.5]}
15... Qxc5 {[%clk 0:02:29.3]} 16. Bd4 {[%clk 0:02:09.2]} 16... Qc7 {[%clk
0:02:29.4]} 17. Bxf6 {[%clk 0:02:05.3]} 17... gxf6 {[%clk 0:02:29.4]} 18. Qd4
{[%clk 0:02:05.9]} 18... Kg7 {[%clk 0:02:18.5]} 19. Qe3 {[%clk 0:01:38.9]} 19...
Rac8 {[%clk 0:02:11]} 20. Nd4 {[%clk 0:01:30.5]} 20... Bg6 {[%clk 0:02:09.6]}
21. h4 {[%clk 0:01:12.6]} 21... Qc5 {[%clk 0:02:02.7]} 22. Rfd1 {[%clk
0:00:53.3]} 22... h6 {[%clk 0:01:49.7]} 23. Qg3 {[%clk 0:00:46.4]} 23... Kh8
{[%clk 0:01:37.9]} 24. Nb3 {[%clk 0:00:43.9]} 24... Qc7 {[%clk 0:01:31.2]} 25.
Qxc7 {[%clk 0:00:42.8]} 25... Rxc7 {[%clk 0:01:31.5]} 26. Nxa5 {[%clk
0:00:43.4]} 26... e5 {[%clk 0:01:20.5]} 27. Nb3 {[%clk 0:00:41.7]} 27... Bc2
{[%clk 0:01:18.6]} 28. Rdb1 {[%clk 0:00:15.4]} 28... Bxb1 {[%clk 0:01:16.3]} 29.
Rxb1 {[%clk 0:00:16.3]} 29... Ra8 {[%clk 0:01:16]} 30. Ra1 {[%clk 0:00:16]}
30... Ra4 {[%clk 0:01:11.1]} 31. g3 {[%clk 0:00:16.3]} 31... b6 {[%clk
0:01:07.8]} 32. Kf1 {[%clk 0:00:14]} 32... Rca7 {[%clk 0:01:07.6]} 33. Rd1
{[%clk 0:00:12.4]} 33... Rxa3 {[%clk 0:01:06.5]} 34. Rd8+ {[%clk 0:00:12.9]}
34... Kg7 {[%clk 0:01:06.7]} 35. Nd2 {[%clk 0:00:13.8]} 35... f5 {[%clk
0:00:40.6]} 36. Nf3 {[%clk 0:00:13.3]} 36... f6 {[%clk 0:00:40.5]} 37. Rb8
{[%clk 0:00:12.2]} 37... Ra1+ {[%clk 0:00:29.4]} 38. Kg2 {[%clk 0:00:12.6]}
38... R1a2 {[%clk 0:00:29.4]} 39. Bf1 {[%clk 0:00:12.6]} 39... e4 {[%clk
0:00:29]} 40. Nd4 {[%clk 0:00:12.7]} 40... e3 {[%clk 0:00:29.6]} 41. Ne2 {[%clk
0:00:10.3]} 41... f4 {[%clk 0:00:25.4]} 42. gxf4 {[%clk 0:00:10.2]} 42... Nf5
{[%clk 0:00:25.9]} 43. Rxb6 {[%clk 0:00:09.8]} 43... Nxh4+ {[%clk 0:00:25.2]}
44. Kg3 {[%clk 0:00:10.3]} 44... Nf5+ {[%clk 0:00:21.1]} 45. Kg4 {[%clk
0:00:10.8]} 45... Kg6 {[%clk 0:00:12.5]} 46. fxe3 {[%clk 0:00:08.6]} 46... Nxe3+
{[%clk 0:00:12.8]} 47. Kf3 {[%clk 0:00:08.9]} 47... Nxf1 {[%clk 0:00:13]} 48.
Nd4 {[%clk 0:00:07.7]} 48... Nd2+ {[%clk 0:00:09.3]} 49. Kg4 {[%clk 0:00:07.5]}
49... h5+ {[%clk 0:00:09.6]} 50. Kh4 {[%clk 0:00:07.9]} 50... Nxc4 {[%clk
0:00:08]} 51. f5+ {[%clk 0:00:07.9]} 51... Kg7 {[%clk 0:00:08]} 52. Ne6+ {[%clk
0:00:08.3]} 52... Kh7 {[%clk 0:00:06.9]} 53. Rb8 {[%clk 0:00:08.9]} 53... Rh2+
{[%clk 0:00:04.2]} 54. Kg3 {[%clk 0:00:08.7]} 54... Rh1 {[%clk 0:00:03.8]} 55.
Nf8+ {[%clk 0:00:07.9]} 55... Kh6 {[%clk 0:00:03.5]} 56. Ng6 {[%clk 0:00:07.5]}
56... Kg5 {[%clk 0:00:03.6]} 57. b6 {[%clk 0:00:03.9]} 57... Ra3+ {[%clk
0:00:03.3]} 58. Kg2 {[%clk 0:00:03.8]} 58... Rb1 {[%clk 0:00:04]} 0-1